[Event "Fagernes Chess GM-Swiss 2025"]
[Site "Fagernes"]
[Date "2025.04.15"]
[Round "3.23"]
[White "Myagmarsuren, Evsuld"]
[Black "Kittilsen, Sigurd"]
[Result "1/2-1/2"]
[Annotator "RC"]
[ECO "B90"]
[WhiteElo "2305"]
[BlackElo "2010"]
[PlyCount "89"]
[EventDate "2025.04.12"]
[EventCountry "NOR"]
[SourceTitle "playchess.com"]
[Source "ChessBase"]
[SourceQuality "1"]
[TimeControl "40/6000+30:2400+30"]

1. e4 {[%emt 0:00:02]} c5 {[%emt 0:00:07]} 2. Nf3 {[%emt 0:00:05]} d6 {[%emt 0:00:07]} 3. d4 {[%emt 0:00:42]} cxd4 {[%emt 0:00:07]} 4. Nxd4 {[%emt 0:00:03]} Nf6 {[%emt 0:00:09]} 5. Nc3 {[%emt 0:00:07]} a6 {[%emt 0:00:11]} 6. h3 {[%emt 0:00:09]} e5 {[%emt 0:01:02]} 7. Nde2 {[%emt 0:00:15]} Be6 {[%emt 0:03:37]} 8. g4 {[%emt 0:00:35]} d5 {[%emt 0:02:36]} 9. exd5 {[%emt 0:01:02]} Nxd5 {[%emt 0:06:46]} 10. Bg2 {[%emt 0:00:28]} Bb4 {[%emt 0:01:36]} 11. O-O {[%emt 0:07:14]} Nxc3 {[%emt 0:02:31]} 12. Nxc3 {[%emt 0:02:39]} Nc6 {[%emt 0:08:26]} 13. Be3 {[%emt 0:02:39]} Qa5 {[%emt 0:04:09]} 14. Nd5 {[%emt 0:12:03]} Bxd5 {[%emt 0:23:41]} 15. Qxd5 {[%emt 0:00:38]} Qxd5 {[%emt 0:04:56]} 16. Bxd5 {[%emt 0:00:09]} Rd8 {[%emt 0:00:42]} 17. Rfd1 {[%emt 0:01:30]} Nd4 {[%emt 0:08:00]} 18. Be4 {[%emt 0:03:38]} O-O {[%emt 0:01:59]} 19. c3 {[%emt 0:01:06]} Bxc3 {[%emt 0:00:16]} 20. bxc3 {[%emt 0:01:36]} Ne2+ {[%emt 0:00:07]} 21. Kg2 {[%emt 0:01:36]} Rxd1 {[%emt 0:00:08]} 22. Rxd1 {[%emt 0:00:05]} Nxc3 {[%emt 0:00:08]} 23. Bc2 {[%emt 0:00:16]} Nxd1 {[%emt 0:00:50]} 24. Bxd1 {[%emt 0:00:03]} Rd8 {[%emt 0:01:13]} 25. Be2 {[%emt 0:00:32]} b5 {[%emt 0:01:08]} 26. Kf3 {[%emt 0:00:15]} f6 {[%emt 0:00:34]} 27. Ke4 {[%emt 0:00:14]} Kf7 {[%emt 0:00:17]} 28. Bd3 {[%emt 0:00:54]} Rc8 {[%emt 0:03:23]} 29. Be2 {[%emt 0:01:09]} Rd8 {[%emt 0:02:25]} 30. g5 {[%emt 0:00:09]} fxg5 {[%emt 0:04:13]} 31. Kxe5 {[%emt 0:05:57]} Kg6 {[%emt 0:00:22]} 32. Bf3 {[%emt 0:00:45]} b4 {[%emt 0:07:12]} 33. Bc6 {[%emt 0:06:28]} Kh5 {[%emt 0:02:13]} 34. Kf5 {[%emt 0:01:51]} g6+ {[%emt 0:02:14]} 35. Ke6 {[%emt 0:06:04]} Rc8 {[%emt 0:05:32]} 36. Kd7 {[%emt 0:18:12]} Rf8 {[%emt 0:01:04]} 37. Ke7 {[%emt 0:05:42]} Rc8 {[%emt 0:02:25]} 38. Kd7 {[%emt 0:07:32]} Rf8 {[%emt 0:00:11]} 39. Kc7 {[%emt 0:16:30]} Kh4 {[%emt 0:06:13]} 40. Bg2 {[%emt 0:03:51]} a5 {[%emt 0:02:53]} 41. Bc6 {[%emt 0:06:11]} Kxh3 {[%emt 0:05:00]} 42. Kb6 {[%emt 0:00:57]} Rb8+ {[%emt 0:01:02]} 43. Kc7 {[%emt 0:03:29]} Rf8 {[%emt 0:00:38]} 44. Kb6 {[%emt 0:00:05]} Rb8+ {[%emt 0:00:06]} 45. Kc7 {[%emt 0:00:05]} 1/2-1/2

[Event "Fagernes Chess GM-Swiss 2025"]
[Site "Fagernes"]
[Date "2025.04.15"]
[Round "3.24"]
[White "Pang, Ethan"]
[Black "Simonsen, David Mindestrommen"]
[Result "1/2-1/2"]
[Annotator "RC"]
[ECO "B14"]
[WhiteElo "2257"]
[BlackElo "2034"]
[PlyCount "112"]
[EventDate "2025.04.12"]
[EventCountry "NOR"]
[SourceTitle "playchess.com"]
[Source "ChessBase"]
[SourceQuality "1"]
[TimeControl "40/6000+30:2400+30"]

1. d4 {[%emt 0:03:08]} Nf6 {[%emt 0:00:20]} 2. Nf3 {[%emt 0:00:55]} e6 {[%emt 0:00:39]} 3. e3 {[%emt 0:00:29]} c5 {[%emt 0:00:23]} 4. c4 {[%emt 0:01:25]} cxd4 {[%emt 0:01:57]} 5. exd4 {[%emt 0:01:11]} d5 {[%emt 0:01:21]} 6. Nc3 {[%emt 0:07:43]} Be7 {[%emt 0:04:16]} 7. b3 {[%emt 0:07:19]} b6 {[%emt 0:02:15]} 8. Bb2 {[%emt 0:03:23]} O-O {[%emt 0:01:50]} 9. Bd3 {[%emt 0:01:58]} Nc6 {[%emt 0:01:53]} 10. O-O {[%emt 0:04:11]} Ba6 {[%emt 0:03:25]} 11. Rc1 {[%emt 0:12:44]} Rc8 {[%emt 0:03:42]} 12. Nb5 {[%emt 0:04:53]} Nb4 {[%emt 0:21:47]} 13. a3 {[%emt 0:14:03]} Nxd3 {[%emt 0:00:23]} 14. Qxd3 {[%emt 0:01:40]} dxc4 {[%emt 0:06:27]} 15. bxc4 {[%emt 0:00:12]} Bxb5 {[%emt 0:05:26]} 16. cxb5 {[%emt 0:00:08]} Qd5 {[%emt 0:03:10]} 17. Ne5 {[%emt 0:05:46]} Bd6 {[%emt 0:00:46]} 18. Nc6 {[%emt 0:03:45]} a6 {[%emt 0:00:47]} 19. a4 {[%emt 0:03:50]} axb5 {[%emt 0:02:20]} 20. axb5 {[%emt 0:05:05]} Qg5 {[%emt 0:01:34]} 21. Ba3 {[%emt 0:05:41]} Bxa3 {[%emt 0:01:03]} 22. Qxa3 {[%emt 0:00:07]} Ra8 {[%emt 0:01:02]} 23. Qb3 {[%emt 0:02:38]} Nd5 {[%emt 0:04:18]} 24. Ra1 {[%emt 0:04:49]} Rxa1 {[%emt 0:05:15]} 25. Rxa1 {[%emt 0:00:03]} h5 {[%emt 0:00:18]} 26. h3 {[%emt 0:05:16]} Re8 {[%emt 0:01:59]} 27. Qf3 {[%emt 0:02:10]} g6 {[%emt 0:01:54]} 28. Ra7 {[%emt 0:02:04]} Qc1+ {[%emt 0:00:42]} 29. Kh2 {[%emt 0:00:05]} Qf4+ {[%emt 0:00:25]} 30. Qxf4 {[%emt 0:00:03]} Nxf4 {[%emt 0:00:09]} 31. Ne5 {[%emt 0:01:05]} Rf8 {[%emt 0:00:18]} 32. Nd7 {[%emt 0:00:15]} Rd8 {[%emt 0:00:17]} 33. Nxb6 {[%emt 0:00:37]} Ne2 {[%emt 0:05:19]} 34. Nd7 {[%emt 0:07:05]} Nxd4 {[%emt 0:00:06]} 35. b6 {[%emt 0:01:06]} Nb5 {[%emt 0:00:02]} 36. Rb7 {[%emt 0:00:48]} Nd6 {[%emt 0:02:27]} 37. Rc7 {[%emt 0:00:40]} Nb5 {[%emt 0:00:10]} 38. Nf6+ {[%emt 0:00:36]} Kg7 {[%emt 0:00:05]} 39. Ne4 {[%emt 0:00:24]} Rb8 {[%emt 0:01:19]} 40. Rc6 {[%emt 0:00:15]} e5 {[%emt 0:01:57]} 41. Ng5 {[%emt 0:40:52]} Nd4 {[%emt 0:42:11]} 42. Rd6 {[%emt 0:00:28]} Nf5 {[%emt 0:02:04]} 43. Rc6 {[%emt 0:00:00]} Nd4 {[%emt 0:00:00]} 44. Rc7 {[%emt 0:00:00]} Rxb6 {[%emt 0:00:00]} 45. Rxf7+ {[%emt 0:00:00]} Kg8 {[%emt 0:00:00]} 46. Re7 {[%emt 0:00:00]} Rf6 {[%emt 0:00:00]} 47. f3 {[%emt 0:00:00]} Nc6 {[%emt 0:00:00]} 48. Re8+ {[%emt 0:00:00]} Kg7 {[%emt 0:00:00]} 49. Ne4 {[%emt 0:00:00]} Rf7 {[%emt 0:00:00]} 50. Re6 {[%emt 0:00:00]} Nd4 {[%emt 0:00:00]} 51. Rd6 {[%emt 0:00:00]} Nf5 {[%emt 0:00:00]} 52. Re6 {[%emt 0:00:00]} Nd4 {[%emt 0:00:00]} 53. Rxe5 {[%emt 0:00:00]} Rxf3 {[%emt 0:00:00]} 54. Rd5 {[%emt 0:00:00]} Rd3 {[%emt 0:00:00]} 55. Rd7+ {[%emt 0:00:00]} Kh6 {[%emt 0:00:00]} 56. Rd6 {[%emt 0:00:00]} h4 {[%emt 0:00:00]} 1/2-1/2

[Event "Fagernes Chess GM-Swiss 2025"]
[Site "Fagernes"]
[Date "2025.04.15"]
[Round "3.25"]
[White "Den Roover, Nikolay Jorgensen"]
[Black "Eliseev, Sergey"]
[Result "0-1"]
[Annotator "RC"]
[ECO "A11"]
[WhiteElo "2004"]
[BlackElo "2226"]
[PlyCount "66"]
[EventDate "2025.04.12"]
[EventCountry "NOR"]
[SourceTitle "playchess.com"]
[Source "ChessBase"]
[SourceQuality "1"]
[TimeControl "40/6000+30:2400+30"]

1. Nf3 {[%emt 0:00:03]} d5 {[%emt 0:01:25]} 2. g3 {[%emt 0:00:17]} Nf6 {[%emt 0:00:10]} 3. Bg2 {[%emt 0:00:23]} c6 {[%emt 0:00:04]} 4. c4 {[%emt 0:01:38]} Bg4 {[%emt 0:00:53]} 5. Ne5 {[%emt 0:00:34]} Bf5 {[%emt 0:02:17]} 6. cxd5 {[%emt 0:00:34]} cxd5 {[%emt 0:00:05]} 7. Nc3 {[%emt 0:01:05]} Nc6 {[%emt 0:03:46]} 8. Qa4 {[%emt 0:00:44]} Bd7 {[%emt 0:01:11]} 9. Nxd7 {[%emt 0:00:07]} Qxd7 {[%emt 0:00:07]} 10. d3 {[%emt 0:01:04]} e6 {[%emt 0:03:36]} 11. O-O {[%emt 0:00:48]} Be7 {[%emt 0:01:32]} 12. Bd2 {[%emt 0:00:35]} O-O {[%emt 0:00:38]} 13. Rfc1 {[%emt 0:01:07]} a6 {[%emt 0:01:49]} 14. Qd1 {[%emt 0:01:57]} b5 {[%emt 0:02:16]} 15. a3 {[%emt 0:02:11]} Rac8 {[%emt 0:02:37]} 16. e4 {[%emt 0:24:12]} dxe4 {[%emt 0:05:37]} 17. dxe4 {[%emt 0:02:55]} Bc5 {[%emt 0:06:38]} 18. Bg5 {[%emt 0:39:55]} Qxd1+ {[%emt 0:11:16]} 19. Nxd1 {[%emt 0:02:29]} Nd4 {[%emt 0:00:34]} 20. Rcb1 {[%emt 0:07:43]} Nb3 {[%emt 0:02:07]} 21. Ra2 {[%emt 0:00:03]} Ng4 {[%emt 0:02:03]} 22. a4 {[%emt 0:00:28]} h6 {[%emt 0:01:18]} 23. Bf4 {[%emt 0:05:46]} g5 {[%emt 0:01:00]} 24. Ne3 {[%emt 0:04:46]} Nxf2 {[%emt 0:01:44]} 25. Kxf2 {[%emt 0:00:33]} gxf4 {[%emt 0:00:12]} 26. gxf4 {[%emt 0:00:02]} Rfd8 {[%emt 0:04:20]} 27. Rg1 {[%emt 0:02:40]} Rd2+ {[%emt 0:01:12]} 28. Kf3 {[%emt 0:01:32]} Nd4+ {[%emt 0:00:56]} 29. Kg4 {[%emt 0:00:03]} Ne2 {[%emt 0:00:18]} 30. Re1 {[%emt 0:01:25]} Bxe3 {[%emt 0:00:52]} 31. Bf1 {[%emt 0:01:16]} Nc1 {[%emt 0:02:21]} 32. Ra1 {[%emt 0:00:32]} Nb3 {[%emt 0:00:24]} 33. Ra3 {[%emt 0:01:35]} Bf2 {[%emt 0:00:03]} 0-1

[Event "Fagernes Chess GM-Swiss 2025"]
[Site "Fagernes"]
[Date "2025.04.15"]
[Round "3.26"]
[White "Brattgjerd, Isak Vinh"]
[Black "Kaewpitakkun, Pantham"]
[Result "1-0"]
[Annotator "RC"]
[ECO "C79"]
[WhiteElo "2202"]
[BlackElo "2026"]
[PlyCount "83"]
[EventDate "2025.04.12"]
[EventCountry "NOR"]
[SourceTitle "playchess.com"]
[Source "ChessBase"]
[SourceQuality "1"]
[TimeControl "40/6000+30:2400+30"]

1. e4 {[%emt 0:00:44]} e5 {[%emt 0:00:16]} 2. Nf3 {[%emt 0:00:37]} Nc6 {[%emt 0:00:03]} 3. Bb5 {[%emt 0:00:59]} a6 {[%emt 0:00:06]} 4. Ba4 {[%emt 0:00:01]} Nf6 {[%emt 0:00:24]} 5. d3 {[%emt 0:01:32]} d6 {[%emt 0:00:43]} 6. O-O {[%emt 0:00:20]} Bd7 {[%emt 0:01:56]} 7. c3 {[%emt 0:00:23]} g6 {[%emt 0:01:43]} 8. Nbd2 {[%emt 0:03:45]} Bg7 {[%emt 0:01:11]} 9. Re1 {[%emt 0:00:52]} b5 {[%emt 0:01:20]} 10. Bc2 {[%emt 0:00:42]} O-O {[%emt 0:00:21]} 11. a4 {[%emt 0:00:36]} Qb8 {[%emt 0:05:05]} 12. h3 {[%emt 0:01:46]} Re8 {[%emt 0:04:54]} 13. Nf1 {[%emt 0:01:53]} b4 {[%emt 0:06:09]} 14. d4 {[%emt 0:07:54]} Na5 {[%emt 0:06:15]} 15. Ng3 {[%emt 0:08:40]} c5 {[%emt 0:05:51]} 16. cxb4 {[%emt 0:08:56]} Qxb4 {[%emt 0:02:55]} 17. Bd2 {[%emt 0:00:27]} Qb6 {[%emt 0:00:36]} 18. dxc5 {[%emt 0:00:07]} dxc5 {[%emt 0:01:46]} 19. Bxa5 {[%emt 0:00:36]} Qxa5 {[%emt 0:00:42]} 20. Nf1 {[%emt 0:04:08]} Rab8 {[%emt 0:06:19]} 21. Ne3 {[%emt 0:00:58]} Qb4 {[%emt 0:03:54]} 22. Qe2 {[%emt 0:10:06]} a5 {[%emt 0:13:08]} 23. Nc4 {[%emt 0:04:04]} Nh5 {[%emt 0:02:02]} 24. Ra3 {[%emt 0:14:28]} Nf4 {[%emt 0:02:22]} 25. Qf1 {[%emt 0:00:01]} Be6 {[%emt 0:02:21]} 26. Nfd2 {[%emt 0:00:11]} Rbd8 {[%emt 0:03:23]} 27. Rc3 {[%emt 0:02:03]} Rd4 {[%emt 0:09:56]} 28. Bb3 {[%emt 0:16:27]} Red8 {[%emt 0:05:22]} 29. Nf3 {[%emt 0:00:34]} Rd3 {[%emt 0:05:37]} 30. Re3 {[%emt 0:04:13]} Rxc3 {[%emt 0:08:52]} 31. Rxc3 {[%emt 0:00:08]} Rd4 {[%emt 0:01:59]} 32. Ng5 {[%emt 0:10:38]} Bf6 {[%emt 0:02:37]} 33. Nxe6 {[%emt 0:00:07]} Nxe6 {[%emt 0:00:07]} 34. Ne3 {[%emt 0:00:27]} Nf4 {[%emt 0:01:04]} 35. g3 {[%emt 0:01:51]} c4 {[%emt 0:01:54]} 36. Bxc4 {[%emt 0:00:44]} Nh5 {[%emt 0:01:07]} 37. Bd5 {[%emt 0:02:08]} Qb6 {[%emt 0:02:02]} 38. Qc1 {[%emt 0:01:06]} Bg5 {[%emt 0:01:58]} 39. Rc8+ {[%emt 0:01:28]} Kg7 {[%emt 0:00:09]} 40. Rc7 {[%emt 0:00:31]} Nxg3 {[%emt 0:00:53]} 41. Rxf7+ {[%emt 0:40:26]} Kh6 {[%emt 0:40:08]} 42. Ng4+ {[%emt 0:00:11]} 1-0

[Event "Fagernes Chess GM-Swiss 2025"]
[Site "Fagernes"]
[Date "2025.04.15"]
[Round "3.27"]
[White "Gasland, Lukas Dominik"]
[Black "Andersen, Morten"]
[Result "0-1"]
[Annotator "RC"]
[ECO "E65"]
[WhiteElo "1994"]
[BlackElo "2200"]
[PlyCount "108"]
[EventDate "2025.04.12"]
[EventCountry "NOR"]
[SourceTitle "playchess.com"]
[Source "ChessBase"]
[SourceQuality "1"]
[TimeControl "40/6000+30:2400+30"]

1. Nf3 {[%emt 0:00:48]} Nf6 {[%emt 0:01:54]} 2. g3 {[%emt 0:00:36]} g6 {[%emt 0:00:52]} 3. Bg2 {[%emt 0:00:19]} Bg7 {[%emt 0:00:10]} 4. O-O {[%emt 0:00:10]} c5 {[%emt 0:00:36]} 5. c4 {[%emt 0:03:49]} O-O {[%emt 0:02:48]} 6. Nc3 {[%emt 0:02:27]} Nc6 {[%emt 0:00:31]} 7. d4 {[%emt 0:06:00]} d6 {[%emt 0:02:34]} 8. dxc5 {[%emt 0:12:30]} dxc5 {[%emt 0:00:22]} 9. Be3 {[%emt 0:01:36]} Be6 {[%emt 0:01:17]} 10. Qa4 {[%emt 0:05:30]} Nd4 {[%emt 0:07:53]} 11. Rad1 {[%emt 0:05:24]} Bd7 {[%emt 0:06:30]} 12. Qa3 {[%emt 0:00:27]} Nc2 {[%emt 0:01:29]} 13. Qxc5 {[%emt 0:03:47]} b6 {[%emt 0:02:32]} 14. Qe5 {[%emt 0:01:46]} Ng4 {[%emt 0:06:09]} 15. Qe4 {[%emt 0:04:07]} Ncxe3 {[%emt 0:00:46]} 16. fxe3 {[%emt 0:00:11]} Bxc3 {[%emt 0:07:55]} 17. bxc3 {[%emt 0:00:34]} Nf6 {[%emt 0:02:53]} 18. Qh4 {[%emt 0:05:11]} Rc8 {[%emt 0:13:46]} 19. Bh3 {[%emt 0:12:18]} Qe8 {[%emt 0:12:11]} 20. Ng5 {[%emt 0:15:30]} Bxh3 {[%emt 0:06:12]} 21. Rxf6 {[%emt 0:03:22]} h5 {[%emt 0:00:35]} 22. Rf4 {[%emt 0:01:10]} Bd7 {[%emt 0:03:23]} 23. Rfd4 {[%emt 0:01:12]} Rc7 {[%emt 0:05:28]} 24. Qe4 {[%emt 0:05:14]} Bf5 {[%emt 0:04:00]} 25. Qf3 {[%emt 0:02:48]} Qc8 {[%emt 0:08:12]} 26. e4 {[%emt 0:01:55]} Bg4 {[%emt 0:00:30]} 27. Qd3 {[%emt 0:00:17]} e5 {[%emt 0:01:48]} 28. Rd8 {[%emt 0:02:34]} Rxd8 {[%emt 0:00:14]} 29. Qxd8+ {[%emt 0:00:06]} Qxd8 {[%emt 0:00:11]} 30. Rxd8+ {[%emt 0:00:07]} Kg7 {[%emt 0:00:05]} 31. Nf3 {[%emt 0:04:11]} Rxc4 {[%emt 0:03:21]} 32. Nxe5 {[%emt 0:02:48]} Rxc3 {[%emt 0:00:12]} 33. Nxg4 {[%emt 0:01:47]} hxg4 {[%emt 0:00:04]} 34. Kf2 {[%emt 0:00:08]} Ra3 {[%emt 0:01:35]} 35. e5 {[%emt 0:02:00]} Rxa2 {[%emt 0:02:16]} 36. Rd7 {[%emt 0:00:07]} Kf8 {[%emt 0:05:14]} 37. Rb7 {[%emt 0:01:43]} Ra5 {[%emt 0:00:29]} 38. Ke3 {[%emt 0:02:43]} Rxe5+ {[%emt 0:00:15]} 39. Kf4 {[%emt 0:00:12]} Re7 {[%emt 0:00:45]} 40. Rb8+ {[%emt 0:00:58]} Re8 {[%emt 0:00:17]} 41. Rb7 {[%emt 0:40:07]} Re7 {[%emt 0:41:17]} 42. Rb8+ {[%emt 0:00:10]} Kg7 {[%emt 0:00:04]} 43. e4 {[%emt 0:00:14]} Kf6 {[%emt 0:01:25]} 44. Rc8 {[%emt 0:00:00]} g5+ {[%emt 0:00:00]} 45. Ke3 {[%emt 0:00:00]} Ke5 {[%emt 0:00:00]} 46. Rg8 {[%emt 0:00:00]} f6 {[%emt 0:00:00]} 47. Rb8 {[%emt 0:00:00]} Rh7 {[%emt 0:00:00]} 48. Re8+ {[%emt 0:00:00]} Kd6 {[%emt 0:00:00]} 49. Rf8 {[%emt 0:00:00]} Ke6 {[%emt 0:00:00]} 50. Re8+ {[%emt 0:00:00]} Re7 {[%emt 0:00:00]} 51. Rb8 {[%emt 0:00:00]} Kd6 {[%emt 0:00:00]} 52. Rf8 {[%emt 0:00:00]} Re6 {[%emt 0:00:00]} 53. Kd4 {[%emt 0:00:00]} a5 {[%emt 0:00:00]} 54. Rb8 {[%emt 0:00:00]} Kc6 {[%emt 0:00:00]} 0-1

[Event "Fagernes Chess GM-Swiss 2025"]
[Site "Fagernes"]
[Date "2025.04.15"]
[Round "3.28"]
[White "Lilliehook, Victor"]
[Black "Hebbar, Eshaan"]
[Result "1-0"]
[Annotator "RC"]
[ECO "C45"]
[WhiteElo "1993"]
[BlackElo "2175"]
[PlyCount "51"]
[EventDate "2025.04.12"]
[EventCountry "NOR"]
[SourceTitle "playchess.com"]
[Source "ChessBase"]
[SourceQuality "1"]
[TimeControl "40/6000+30:2400+30"]

1. e4 {[%emt 0:00:02]} e5 {[%emt 0:00:05]} 2. Nf3 {[%emt 0:00:03]} Nc6 {[%emt 0:00:03]} 3. d4 {[%emt 0:00:04]} exd4 {[%emt 0:00:04]} 4. Nxd4 {[%emt 0:00:03]} Bc5 {[%emt 0:00:06]} 5. Nb3 {[%emt 0:00:04]} Bb6 {[%emt 0:00:04]} 6. Nc3 {[%emt 0:00:04]} Nf6 {[%emt 0:00:06]} 7. Qe2 {[%emt 0:00:06]} d6 {[%emt 0:00:44]} 8. Be3 {[%emt 0:00:45]} O-O {[%emt 0:00:51]} 9. O-O-O {[%emt 0:01:26]} Re8 {[%emt 0:01:34]} 10. f3 {[%emt 0:03:25]} Be6 {[%emt 0:06:24]} 11. g4 {[%emt 0:08:56]} Ne5 {[%emt 0:04:59]} 12. Bd4 {[%emt 0:05:09]} Qe7 {[%emt 0:07:00]} 13. Bg2 {[%emt 0:12:42]} c6 {[%emt 0:05:05]} 14. Qf2 {[%emt 0:07:30]} Bxd4 {[%emt 0:08:49]} 15. Nxd4 {[%emt 0:01:40]} b5 {[%emt 0:07:04]} 16. g5 {[%emt 0:11:10]} Nh5 {[%emt 0:11:13]} 17. f4 {[%emt 0:08:26]} Nc4 {[%emt 0:02:36]} 18. Nxc6 {[%emt 0:05:24]} Qc7 {[%emt 0:00:05]} 19. e5 {[%emt 0:01:28]} dxe5 {[%emt 0:09:13]} 20. f5 {[%emt 0:09:04]} Bc8 {[%emt 0:07:21]} 21. Nxb5 {[%emt 0:10:23]} Qb7 {[%emt 0:00:31]} 22. Qc5 {[%emt 0:00:51]} e4 {[%emt 0:11:25]} 23. Qxc4 {[%emt 0:10:36]} Bd7 {[%emt 0:00:06]} 24. Nd6 {[%emt 0:00:18]} Qxc6 {[%emt 0:09:25]} 25. Qxf7+ {[%emt 0:00:12]} Kh8 {[%emt 0:00:06]} 26. Qxh5 {[%emt 0:00:47]} 1-0

[Event "Fagernes Chess GM-Swiss 2025"]
[Site "Fagernes"]
[Date "2025.04.15"]
[Round "3.29"]
[White "Haugen, Lars Tormod"]
[Black "Skaar, Ben Samuel Groth"]
[Result "1/2-1/2"]
[Annotator "RC"]
[ECO "B33"]
[WhiteElo "1988"]
[BlackElo "2167"]
[PlyCount "96"]
[EventDate "2025.04.12"]
[EventCountry "NOR"]
[SourceTitle "playchess.com"]
[Source "ChessBase"]
[SourceQuality "1"]
[TimeControl "40/6000+30:2400+30"]

1. e4 {[%emt 0:00:16]} c5 {[%emt 0:00:05]} 2. Nf3 {[%emt 0:00:23]} Nc6 {[%emt 0:00:05]} 3. d4 {[%emt 0:00:15]} cxd4 {[%emt 0:00:05]} 4. Nxd4 {[%emt 0:00:08]} Nf6 {[%emt 0:00:04]} 5. Nc3 {[%emt 0:00:08]} e5 {[%emt 0:00:04]} 6. Ndb5 {[%emt 0:00:32]} d6 {[%emt 0:00:05]} 7. Bg5 {[%emt 0:00:10]} a6 {[%emt 0:00:06]} 8. Na3 {[%emt 0:00:13]} b5 {[%emt 0:00:05]} 9. Nab1 {[%emt 0:00:32]} Be7 {[%emt 0:00:27]} 10. Bxf6 {[%emt 0:00:23]} Bxf6 {[%emt 0:01:24]} 11. a4 {[%emt 0:00:18]} b4 {[%emt 0:00:51]} 12. Nd5 {[%emt 0:00:12]} O-O {[%emt 0:00:42]} 13. Bc4 {[%emt 0:00:07]} Rb8 {[%emt 0:06:22]} 14. O-O {[%emt 0:06:09]} Bg5 {[%emt 0:03:20]} 15. Qd3 {[%emt 0:22:13]} a5 {[%emt 0:06:13]} 16. c3 {[%emt 0:16:15]} bxc3 {[%emt 0:03:18]} 17. bxc3 {[%emt 0:00:18]} Ne7 {[%emt 0:02:06]} 18. Na3 {[%emt 0:05:33]} Be6 {[%emt 0:15:49]} 19. Nxe7+ {[%emt 0:07:25]} Bxe7 {[%emt 0:02:08]} 20. Nb5 {[%emt 0:04:57]} Qc8 {[%emt 0:07:11]} 21. Bd5 {[%emt 0:01:16]} Qc5 {[%emt 0:01:25]} 22. Rfe1 {[%emt 0:09:48]} Rbc8 {[%emt 0:14:05]} 23. c4 {[%emt 0:06:00]} Rb8 {[%emt 0:12:24]} 24. Qe3 {[%emt 0:06:12]} Qxe3 {[%emt 0:04:14]} 25. Rxe3 {[%emt 0:00:07]} Bxd5 {[%emt 0:01:19]} 26. cxd5 {[%emt 0:01:33]} Rfc8 {[%emt 0:00:13]} 27. Na7 {[%emt 0:04:34]} Rc5 {[%emt 0:01:17]} 28. Nc6 {[%emt 0:00:19]} Rb7 {[%emt 0:00:04]} 29. Ree1 {[%emt 0:01:32]} f5 {[%emt 0:02:17]} 30. f3 {[%emt 0:00:34]} Bg5 {[%emt 0:00:35]} 31. Reb1 {[%emt 0:00:50]} Rxb1+ {[%emt 0:01:14]} 32. Rxb1 {[%emt 0:00:02]} fxe4 {[%emt 0:00:12]} 33. fxe4 {[%emt 0:01:17]} Rc4 {[%emt 0:07:01]} 34. Nxa5 {[%emt 0:06:51]} Rxa4 {[%emt 0:00:16]} 35. Rb8+ {[%emt 0:04:50]} Kf7 {[%emt 0:00:07]} 36. Nb7 {[%emt 0:01:03]} Ke7 {[%emt 0:09:54]} 37. Nd8 {[%emt 0:01:27]} Rxe4 {[%emt 0:01:52]} 38. Ne6 {[%emt 0:01:31]} Bh6 {[%emt 0:01:20]} 39. Rb7+ {[%emt 0:01:02]} Kf6 {[%emt 0:00:19]} 40. Rd7 {[%emt 0:01:25]} Re2 {[%emt 0:05:26]} 41. Nc7 {[%emt 0:20:11]} Be3+ {[%emt 0:02:34]} 42. Kf1 {[%emt 0:00:03]} Rf2+ {[%emt 0:00:09]} 43. Ke1 {[%emt 0:00:17]} Rxg2 {[%emt 0:06:43]} 44. Ne8+ {[%emt 0:01:35]} Kf5 {[%emt 0:00:05]} 45. Nxd6+ {[%emt 0:03:36]} Kg4 {[%emt 0:00:21]} 46. Rxg7+ {[%emt 0:01:47]} Kf3 {[%emt 0:00:50]} 47. Rxg2 {[%emt 0:10:00]} Kxg2 {[%emt 0:00:06]} 48. Nf7 {[%emt 0:00:24]} Kxh2 {[%emt 0:00:22]} 1/2-1/2

[Event "Fagernes Chess GM-Swiss 2025"]
[Site "Fagernes"]
[Date "2025.04.15"]
[Round "3.30"]
[White "Wernberg, Nikolai Olsen"]
[Black "Berget, Eirik"]
[Result "0-1"]
[Annotator "NA RC"]
[ECO "E01"]
[WhiteElo "1893"]
[BlackElo "2041"]
[PlyCount "64"]
[EventDate "2025.04.12"]
[EventCountry "NOR"]
[SourceTitle "playchess.com"]
[Source "ChessBase"]
[SourceQuality "1"]
[TimeControl "40/6000+30:2400+30"]

1. Nf3 {[%emt 0:00:06]} d5 {[%emt 0:00:06]} 2. g3 {[%emt 0:00:06]} Nc6 {[%emt 0:00:06]} 3. d4 {[%emt 0:00:21]} Nf6 {[%emt 0:00:50]} 4. Bg2 {[%emt 0:01:25]} e6 {[%emt 0:03:45]} 5. O-O {[%emt 0:02:29]} Bd6 {[%emt 0:01:30]} 6. c4 {[%emt 0:02:35]} O-O {[%emt 0:03:20]} 7. Nc3 {[%emt 0:02:07]} h6 {[%emt 0:10:03]} 8. b3 {[%emt 0:06:30]} b6 {[%emt 0:04:57]} 9. Bb2 {[%emt 0:04:20]} Bb7 {[%emt 0:01:37]} 10. Rc1 {[%emt 0:03:15]} Qe7 {[%emt 0:04:48]} 11. Nb5 {[%emt 0:04:38]} a6 {[%emt 0:09:43]} 12. Nxd6 {[%emt 0:00:51]} cxd6 {[%emt 0:00:20]} 13. Nd2 {[%emt 0:04:01]} Rac8 {[%emt 0:13:55]} 14. Re1 {[%emt 0:04:46]} b5 {[%emt 0:05:35]} 15. cxd5 {[%emt 0:07:12]} exd5 {[%emt 0:03:26]} 16. e4 {[%emt 0:01:46]} Nb4 {[%emt 0:02:43]} 17. exd5 {[%emt 0:05:54]} Rxc1 {[%emt 0:02:06]} 18. Qxc1 {[%emt 0:00:39]} Qd7 {[%emt 0:00:13]} 19. Qb1 {[%emt 0:01:05]} Bxd5 {[%emt 0:02:00]} 20. Bxd5 {[%emt 0:02:47]} Nbxd5 {[%emt 0:00:06]} 21. Ne4 {[%emt 0:02:01]} Qh3 {[%emt 0:02:18]} 22. Re2 {[%emt 0:04:36]} Qg4 {[%emt 0:04:57]} 23. Nxf6+ {[%emt 0:02:43]} Nxf6 {[%emt 0:00:07]} 24. Qd3 {[%emt 0:02:17]} d5 {[%emt 0:02:12]} 25. Kg2 {[%emt 0:04:31]} Rc8 {[%emt 0:06:06]} 26. h3 {[%emt 0:03:09]} Qd7 {[%emt 0:01:04]} 27. Ba3 {[%emt 0:01:59]} Ne4 {[%emt 0:00:44]} 28. Bb2 {[%emt 0:17:17]} Rc6 {[%emt 0:02:52]} 29. Rc2 {[%emt 0:03:35]} Rf6 {[%emt 0:02:51]} 30. Bc1 {[%emt 0:01:37]} Rg6 {[%emt 0:19:00]} 31. Bf4 {[%emt 0:02:58]} Qf5 {[%emt 0:00:40]} 32. Rd2 {[%emt 0:03:02]} Qxf4 {[%emt 0:00:25]} 0-1